Workbook

Sheet Sheet1
A1: 書式第１７号（法第２８条関係）
E3: 令和3年度 財産目録
G4: 特定非営利活動法人 I am OKの会
I5: （単位：円）
F6: 科目 | G6: 金 額 | H6: 小 計 | I6: 合 計
B7: 【Ａ】 資 産 の 部
C8: １ 流動資産
E10: 現金預金 | H10: =SUM(G11:G18) -> 18068458
F11: 手元現金 | G11: 389848
F12: ゆうちょ銀行当座預金 | G12: 518889
F13: ゆうちょ銀行普通預金 | G13: =1056422+7208141+1930753+1569201+143842 -> 11908359
F14: 三菱UFJ銀行普通預金 | G14: 1766944
F15: 三井住友銀行普通預金 | G15: 174648
F16: 東京あおば農業協同組合普通預金 | G16: =2992953+216071 -> 3209024
F17: 大東京信用組合普通預金 | G17: 50746
F18: 大東京信用組合定期積金 | G18: 50000
E20: 未収金 | H20: =SUM(G21:G23) -> 10082352
F21: OKプラネット事業未収金 | G21: =6472443+3474219 -> 9946662
F22: OKスターズ事業未収金 | G22: 63690
F23: OK＆ほのぼの事業未収金 | G23: 72000
E25: 前払金 | H25: =SUM(G26:G28) -> 676800
F26: OKプラネット事業前払金 | G26: =265320+310000 -> 575320
F27: OKスターズト事業前払金 | G27: 29480
F28: OK＆ほのぼの事業前払金 | G28: 72000
C30: 流動資産合計 ・・・① | I30: =SUM(H10:H25) -> 28827610
C31: ２ 固定資産
D32: （１）有形固定資産 | I32: =H33+H40 -> 12008591
E33: 建物 | H33: =SUM(G34:G38) -> 11052686
F34: 建物設備造作 | G34: =2000003-176470 -> 1823533
F35: 建物設備造作 | G35: =2020002-178235 -> 1841767
F36: 建物床暖房造作 | G36: =191026-20466 -> 170560
F37: 玄関プリント | G37: 1
F38: 建物（関町）内装工事 | G38: 7216825
E40: 什器備品 | H40: =SUM(G41:G59) -> 955905
F41: 子ども用イス | G41: 13
F42: 子ども用テーブル | G42: 3
F43: ポニスイング（吊り具） | G43: 1
F44: 遊具EVA製 運動遊び用 | G44: 1
F45: ムーブメントパラシュート | G45: 1
F46: 大型積み木プラフォーミングCセット | G46: 1
F47: NEWプラポイントB | G47: 1
F48: 発達支援指導プログラム のぞみ発達クリニック教材 | G48: 1
F49: 収納棚 | G49: 1
F50: 事務机二人掛け用 | G50: 1
F51: キャビネット4段A4判 | G51: 1
F52: 本箱 イケヤ・シエルフュンイット 118×193cm | G52: 1
F53: 本箱 イケヤ・シエルフュンイット 58×193cm | G53: 1
F54: 掃除機ロボット・ルンバ | G54: 1
F55: 吊り戸棚造作 | G55: 1
F56: エアコンSZRK80BFNT | G56: 356024
F57: エアコンS28YTCXS | G57: 192445
F58: エアコンC25YTCXS | G58: 182823
F59: 複合機RICOH IM C2500F | G59: 224584
D61: （２）無形固定資産
D64: （３）投資その他の資産 | I64: =H65 -> 1568121
E65: 差入保証金 | H65: =SUM(G66:G67) -> 1568121
F66: OKプラネット事業 | G66: =522667+845454 -> 1368121
F67: OKスターズト事業 | G67: 200000
C69: 固定資産合計 ・・・② | I69: =I32+I64 -> 13576712
B70: 【Ａ】資 産 合 計 ①＋② | I70: =I30+I69 -> 42404322
B71: 【Ｂ－１】 負 債 の 部
C72: １ 事業費 | D72: 流動負債
E74: 未払金 | H74: =SUM(G75:G78) -> 2760709
F75: 3月分給与 | G75: =1214033+881309+261335 -> 2356677
F76: スマートフォン利用料 | G76: 1432
F77: （株）アルウイングシステム | G77: 303600
F78: 2・3月分ほのぼの業務委託費 | G78: 99000
E80: 短期借入金 | H80: 1000880
F81: 役員借入金 | G81: 1000880
E83: 預り金 | H83: 267228
F84: 源泉徴収税 | G84: 267228
C86: 流動負債合計 ・・・③ | I86: =SUM(H74:H83) -> 4028817
C87: ２ 固定負債
C90: 固定負債合計 ・・・④ | I90: 0
B91: 【Ｂ－１】負 債 合 計 ③＋④ | I91: =I86+I90 -> 4028817
B92: 【Ｂ－２】正 味 財 産 合 計 【Ａ】－【Ｂ－１】 | I92: =I70-I91 -> 38375505

Sheet Sheet2

Sheet Sheet3
